fUST/lending_fUST_20251116
["ID","MTS","AMOUNT","RATE_DAILY","PERIOD"]
[394106715,1763287945151,-336.96338535,0.0001425,2]
[394106716,1763287947243,-509.25367433,0.0001425,2]
[394106717,1763287949757,-233.58435743,0.0001425,2]
[394106718,1763287951210,-170.54440839,0.0001425,2]
[394106719,1763287955581,-375.74396929,0.0001425,2]
[394106720,1763287958783,-300.0,0.0001425,2]
[394106721,1763287961419,-184.80898443,0.0001425,2]
[394106722,1763287962939,-219.26868526,0.0001425,2]
[394106723,1763287966128,-291.36681348,0.0001425,2]
[394106724,1763287967841,-216.96010571,0.0001425,2]
[394106725,1763287969218,-206.73428582,0.0001425,2]
[394106726,1763287972107,-234.66703586,0.0001425,2]
[394106727,1763287974690,-186.06169872,0.0001425,2]
[394106728,1763287977117,-573.28340156,0.0001425,2]
[394106729,1763287980445,-403.51387007,0.0001425,2]
[394106730,1763287982009,-988.66838313,0.0001425,2]
[394106731,1763287985839,-198.81943531,0.0001425,2]
[394106732,1763287988334,3627.92309186,0.00014108,2]
[394106733,1763287996375,3627.92309186,0.00014108,2]
[394106734,1763288011985,3627.92309186,0.00014108,2]
[394106735,1763288020394,3627.92309186,0.00014108,2]
[394106736,1763288035562,132.90806365,0.00014108,2]
[394106737,1763288044038,2609.76131789,0.00013967,2]
[394106748,1763288229712,3495.01502821,0.00013967,2]
[394106750,1763288252271,1321.560729,0.00013979,2]
[394106752,1763288274498,6912.9499427,0.00013881,2]
[394106753,1763288297371,6912.9499427,0.00013881,2]
[394106754,1763288320176,6912.9499427,0.00013881,2]
[394106755,1763288342411,6912.9499427,0.00013881,2]
[394106756,1763288365265,6912.9499427,0.00013881,2]
[394106757,1763288387356,6065.22072782,0.00013881,2]
[394106758,1763288387378,847.72921488,0.00013881,2]
[394106759,1763288409728,6912.9499427,0.00013881,2]
[394106760,1763288433402,6912.9499427,0.00013881,2]
[394106761,1763288455409,5987.42148276,0.00013881,2]
[394106762,1763288774042,522.7853212,0.00013699,2]
[394106763,1763288781646,2350.87817659,0.00013881,2]
[394106769,1763288890963,290.65074523,0.000125,2]
[394106770,1763288902517,-3087.0600573,0.00014021,2]
[394106771,1763288902914,-3825.8898854,0.00014021,2]
[394106773,1763288917677,-175.39929372,0.0001407,2]
[394106774,1763288917708,-1200.0,0.00014119,2]
[394106775,1763288917735,-1321.560729,0.0001412,2]
[394106776,1763288917764,-300.0,0.00014245,2]
[394106777,1763288917795,-1200.0,0.00014246,2]
[394106778,1763288917824,-300.0,0.00014247,2]
[394106779,1763288917853,-300.0,0.00014247,2]
[394106780,1763288917882,-106.08995456,0.00014247,2]
[394106781,1763288918212,-193.91004544,0.00014247,2]
[394106782,1763288918248,-3627.92309186,0.0001425,2]
[394106783,1763288918295,-3795.01733583,0.00014715,2]
[394106784,1763288918326,-418.21931785,0.00014814,2]
[394106785,1763288918356,-191.27093328,0.00014814,2]
[394106786,1763288918390,-572.25589322,0.00014814,2]
[394106787,1763288918428,-46.48303964,0.00014814,2]
[394106788,1763288918458,-500.0,0.00014814,2]
[394106789,1763288918491,-500.0,0.00014814,2]
[394106790,1763288918521,-500.0,0.00014814,2]
[394106791,1763288918554,-486.58294677,0.00014814,2]
[394106792,1763288918588,-618.73893286,0.00014814,2]
[394106793,1763288918618,-500.0,0.00014814,2]
[394106794,1763288918647,-500.0,0.00014814,2]
[394106795,1763288918679,-618.73893286,0.00014814,2]
[394106796,1763288918709,-500.0,0.00014814,2]
[394106797,1763288918910,-500.0,0.00014814,2]
[394106798,1763288918946,-618.73893286,0.00014814,2]
[394106799,1763288918978,-500.0,0.00014814,2]
[394106800,1763288919009,-500.0,0.00014814,2]
[394106801,1763288919042,-618.73893286,0.00014814,2]
[394106802,1763288919073,-500.0,0.00014814,2]
[394106803,1763288919104,-500.0,0.00014814,2]
[394106804,1763288919137,-618.73893286,0.00014814,2]
[394106805,1763288919174,-500.0,0.00014814,2]
[394106806,1763288919315,-500.0,0.00014814,2]
[394106807,1763288919350,-618.73893286,0.00014814,2]
[394106808,1763288919381,-618.73893286,0.00014814,2]
[394106809,1763288919413,-500.0,0.00014814,2]
[394106810,1763288919444,-500.0,0.00014814,2]
[394106811,1763288919474,-618.73893286,0.00014814,2]
[394106812,1763288919504,-500.0,0.00014814,2]
[394106813,1763288919536,-500.0,0.00014814,2]
[394106814,1763288919569,-618.73893286,0.00014814,2]
[394106815,1763288919682,-618.73893286,0.00014814,2]
[394106816,1763288919711,-500.0,0.00014814,2]
[394106817,1763288919740,-500.0,0.00014814,2]
[394106818,1763288919771,-618.73893286,0.00014814,2]
[394106819,1763288919803,-618.73893286,0.00014814,2]
[394106820,1763288919834,-618.73893286,0.00014814,2]
[394106822,1763288919867,-618.73893286,0.00014814,2]
[394106823,1763288919899,-618.73893286,0.00014814,2]
[394106824,1763288920116,-618.73893286,0.00014814,2]
[394106825,1763288920149,-618.73893286,0.00014814,2]
[394106826,1763288920179,-618.73893286,0.00014814,2]
[394106827,1763288920210,-618.73893286,0.00014814,2]
[394106828,1763288920245,-618.73893286,0.00014814,2]
[394106829,1763288920276,-618.73893286,0.00014814,2]
[394106830,1763288920309,-618.73893286,0.00014814,2]
[394106831,1763288920341,-618.73893286,0.00014814,2]
[394106832,1763288920418,-618.73893286,0.00014814,2]
[394106833,1763288920450,-618.73893286,0.00014814,2]
[394106834,1763288920481,-618.73893286,0.00014814,2]
[394106835,1763288920513,-618.73893286,0.00014814,2]
[394106836,1763288920544,-618.73893286,0.00014814,2]
[394106837,1763288920575,-618.73893286,0.00014814,2]
[394106838,1763288920607,-618.73893286,0.00014814,2]
[394106839,1763288920639,-618.73893286,0.00014814,2]
[394106840,1763288920722,-618.73893286,0.00014814,2]
[394106841,1763288920755,-618.73893286,0.00014814,2]
[394106842,1763288920787,-618.73893286,0.00014814,2]
[394106843,1763288920818,-618.73893286,0.00014814,2]
[394106844,1763288920850,-209.14969244,0.00014814,2]
[394106845,1763288920882,-618.73893286,0.00014814,2]
[394106846,1763288920915,-618.73893286,0.00014814,2]
[394106847,1763288920945,-618.73893286,0.00014814,2]
[394106848,1763288920977,-300.62662222,0.00014814,2]
[394106849,1763288922131,-318.11231064,0.00014814,2]
[394106850,1763288922165,-618.73893286,0.00014814,2]
[394106851,1763288922200,-618.73893286,0.00014814,2]
[394106852,1763288922239,-618.73893286,0.00014814,2]
[394106853,1763288922275,-618.73893286,0.00014814,2]
[394106854,1763288922309,-618.73893286,0.00014814,2]
[394106855,1763288922343,-618.73893286,0.00014814,2]
[394106856,1763288922379,-618.73893286,0.00014814,2]
[394106857,1763288922413,-82.70138582,0.00014814,2]
[394106858,1763288922525,-536.03754704,0.00014814,2]
[394106859,1763288922556,-618.73893286,0.00014814,2]
[394106860,1763288922593,-618.73893286,0.00014814,2]
[394106861,1763288922627,-618.73893286,0.00014814,2]
[394106862,1763288922659,-618.73893286,0.00014814,2]
[394106863,1763288922693,-618.73893286,0.00014814,2]
[394106864,1763288922726,-618.73893286,0.00014814,2]
[394106865,1763288922759,-618.73893286,0.00014814,2]
[394106866,1763288922844,-618.73893286,0.00014814,2]
[394106867,1763288922876,-618.73893286,0.00014814,2]
[394106868,1763288922908,-618.73893286,0.00014814,2]
[394106869,1763288922939,-618.73893286,0.00014814,2]
[394106870,1763288922972,-618.73893286,0.00014814,2]
[394106871,1763288923013,-618.73893286,0.00014814,2]
[394106872,1763288923050,-500.0,0.00014814,2]
[394106873,1763288923085,-573.0719773,0.00014815,2]
[394106874,1763288923257,-428.99885108,0.00014815,2]
[394106875,1763288923321,1933.37835984,0.0001,2]
[394106876,1763288924099,-3280.26016933,0.00014816,2]
[394106877,1763288925966,1933.37835984,9.9e-05,2]
[394106878,1763288926663,-10000.01,0.00014816,2]
[394106879,1763288926797,-180.61906356,0.00014816,2]
[394106880,1763288926821,-9638.77187288,0.00014816,2]
[394106881,1763288926909,-2250.50954869,0.00014982,2]
[394106882,1763288926945,-5498.99090262,0.00015,2]
[394106883,1763288927015,-10000.01,0.00015,2]
[394106884,1763288927143,-4430.16005678,0.00015,2]
[394106885,1763288930010,381.93745275,0.000149,2]
[394106886,1763288933771,757.75243369,0.00014891,2]
[394106887,1763288933796,3441.03175894,0.00014891,2]
[394106888,1763288936005,-448.57159844,0.00015041,2]
[394106889,1763288936034,-3750.21259419,0.00015041,2]
[394106890,1763288936063,-800.0,0.00015068,2]
[394106892,1763288940696,150.0,0.00032874,120]
[394106893,1763288943090,2.44161474,0.000151,2]
[394106894,1763288943112,297.55838526,0.000151,2]
[394106895,1763288949378,9702.45161474,0.0001495,2]
[394106896,1763288949400,3493.66752768,0.0001495,2]
[394106897,1763288952432,200.0,0.000151,2]
[394106898,1763288957328,5801.21580737,0.0001495,2]
[394106899,1763288965188,500.0,0.00014814,2]
[394106900,1763288965220,5.12666495,0.00014814,2]
[394106901,1763288965243,494.87333505,0.00014814,2]
[394106902,1763288965283,3310.1052671,0.00014814,2]
[394106903,1763288965322,500.0,0.00014814,2]
[394106904,1763288965353,3310.1052671,0.00014814,2]
[394106905,1763288965391,500.0,0.00014814,2]
[394106906,1763288965424,1884.92613075,0.00014814,2]
[394106907,1763288965449,1425.17913635,0.00014814,2]
[394106908,1763288965476,500.0,0.00014814,2]
[394106909,1763288965514,500.0,0.00014814,2]
[394106910,1763288965543,3310.1052671,0.00014814,2]
[394106911,1763288965586,500.0,0.00014814,2]
[394106912,1763288965616,3310.1052671,0.00014814,2]
[394106913,1763288965656,454.62032945,0.00014814,2]
[394106914,1763288965680,2855.48493765,0.00014814,2]
[394106915,1763288965714,500.0,0.00014814,2]
[394106916,1763288965755,3310.1052671,0.00014814,2]
[394106917,1763288965784,500.0,0.00014814,2]
[394106918,1763288965837,500.0,0.00014814,2]
[394106919,1763288965869,2334.41979525,0.00014814,2]
[394106920,1763288965894,975.68547185,0.00014814,2]
[394106921,1763288965943,3310.1052671,0.00014814,2]
[394106922,1763288965972,274.51297207,0.00014814,2]
[394106923,1763288966052,3310.1052671,0.00014814,2]
[394106924,1763288966082,500.0,0.00014814,2]
[394106925,1763288966118,1629.60102188,0.00014814,2]
[394106926,1763288966141,1680.50424522,0.00014814,2]
[394106927,1763288966182,3310.1052671,0.00014814,2]
[394106928,1763288966225,3310.1052671,0.00014814,2]
[394106929,1763288966267,1699.29522058,0.00014814,2]
[394106930,1763288966392,1610.81004652,0.00014814,2]
[394106931,1763288966451,3310.1052671,0.00014814,2]
[394106932,1763288966487,3310.1052671,0.00014814,2]
[394106933,1763288966516,500.0,0.00014814,2]
[394106934,1763288966548,1268.98941928,0.00014814,2]
[394106935,1763288966571,2041.11584782,0.00014814,2]
[394106936,1763288966687,3310.1052671,0.00014814,2]
[394106937,1763288966729,3310.1052671,0.00014814,2]
[394106938,1763288966770,1338.68361798,0.00014814,2]
[394106939,1763288966793,1971.42164912,0.00014814,2]
[394106940,1763288966832,3310.1052671,0.00014814,2]
[394106941,1763288966897,3310.1052671,0.00014814,2]
[394106942,1763288966945,1408.37781668,0.00014814,2]
[394106943,1763288966969,1901.72745042,0.00014814,2]
[394106944,1763288967011,3310.1052671,0.00014814,2]
[394106945,1763288967064,3310.1052671,0.00014814,2]
[394106946,1763288967104,1478.07201538,0.00014814,2]
[394106947,1763288967227,-1832.03325172,0.00014814,2]
[394106948,1763288967259,-3025.83822946,0.00014814,2]
[394106949,1763288969572,-284.26703764,0.00014814,2]
[394106950,1763288969601,-3310.1052671,0.00014814,2]
[394106951,1763288969766,-3310.1052671,0.00014814,2]
[394106952,1763288969801,-69.6941987,0.00014814,2]
[394106953,1763288969913,-3240.4110684,0.00014814,2]
[394106954,1763288969944,-209.0825961,0.00014814,2]
[394106955,1763288970021,-3101.022671,0.00014814,2]
[394106956,1763288972526,3797.964658,0.0001495,2]
[394106957,1763288972549,1602.6106971,0.0001495,2]
[394106958,1763288977460,743.81,0.00015038,2]
[394106960,1763288980286,7653.5893029,0.0001495,2]
[394106961,1763288980310,10000.01,0.0001495,2]
[394106962,1763288980332,10000.01,0.0001495,2]
[394106963,1763288980354,10000.01,0.0001495,2]
[394106964,1763288980375,10000.01,0.0001495,2]
[394106965,1763288980397,10000.01,0.0001495,2]
[394106966,1763288980418,10000.01,0.0001495,2]
[394106967,1763288980440,10000.01,0.0001495,2]
[394106968,1763288980461,1746.4206971,0.0001495,2]
[394106969,1763288983318,698.383144,0.00013699,2]
[394106997,1763289031726,-1200.0,0.00014799,2]
[394106998,1763289031737,-41588.662652,0.000148,2]
[394106999,1763289031748,-1351.91931291,0.000148,2]
[394107000,1763289031758,-46.25728443,0.00014814,2]
[394107022,1763289037864,-453.74271557,0.00014814,2]
[394107023,1763289037874,-500.0,0.00014814,2]
[394107024,1763289037883,-500.0,0.00014814,2]
[394107025,1763289037893,-500.0,0.00014814,2]
[394107026,1763289037902,-274.51297207,0.00014814,2]
[394107027,1763289037912,-500.0,0.00014814,2]
[394107028,1763289037921,-500.0,0.00014814,2]
[394107029,1763289037930,-500.0,0.00014814,2]
[394107030,1763289037940,-500.0,0.00014814,2]
[394107031,1763289037949,-500.0,0.00014814,2]
[394107032,1763289037958,-500.0,0.00014814,2]
[394107033,1763289037967,-300.0,0.00014949,2]
[394107034,1763289037976,-300.0,0.00014949,2]
[394107035,1763289037986,-9438.96997271,0.0001495,2]
[394107062,1763289039889,-3e-08,0.0001495,2]
[394107081,1763289043238,-2888.27684754,0.0001495,2]
[394107082,1763289043250,-711.48248578,0.0001495,2]
[394107083,1763289043261,-2913.47731066,0.0001495,2]
[394107084,1763289043308,-8126.41739416,0.0001495,2]
[394107087,1763289043319,-1375.04020356,0.0001495,2]
[394107092,1763289046409,-541.07770426,0.00014814,2]
[394107093,1763289046419,-2275.69737113,0.00014814,2]
[394107094,1763289046428,-2275.69737113,0.00014814,2]
[394107095,1763289046438,-2275.69737113,0.00014814,2]
[394107096,1763289046447,-2275.69737113,0.00014814,2]
[394107097,1763289046456,-17486.91775047,0.0001495,2]
[394107098,1763289046465,-396.78414335,0.00015041,2]
[394107099,1763289046475,-1337.82466115,0.00015041,2]
[394107100,1763289046484,-1337.82466114,0.00015075,2]
[394107101,1763289046493,-151.0,0.00015101,2]
[394107102,1763289046502,-151.0,0.00015101,2]
[394107103,1763289046512,-151.0,0.00015101,2]
[394107104,1763289046521,-151.0,0.00015101,2]
[394107105,1763289046531,-151.0,0.00015101,2]
[394107106,1763289046540,-151.0,0.00015101,2]
[394107107,1763289046549,-151.0,0.00015101,2]
[394107108,1763289046559,-151.0,0.00015101,2]
[394107109,1763289046569,-151.0,0.00015101,2]
[394107110,1763289046578,-269.16156133,0.00015101,2]
[394107111,1763289046588,-9696.99228653,0.00015101,2]
[394107112,1763289056602,999.0,0.0001373,2]
[394107113,1763289167095,657.2125853,0.00013879,2]
[394107127,1763289261318,797.52,0.00015091,3]
[394107128,1763289261503,1595.04,0.00016461,3]
[394107132,1763289272483,398.76,0.00015091,3]
[394107133,1763289272678,797.52,0.00016461,3]
[394107134,1763289282544,1518.89,0.00015091,3]
[394107135,1763289282763,3037.78,0.00016461,3]
[394107136,1763289293368,759.45,0.00015091,3]
[394107137,1763289293561,1518.9,0.00016461,3]
[394107138,1763289303998,379.72,0.00015091,3]
[394107139,1763289304228,759.44,0.00016461,3]
[394107140,1763289314622,189.86,0.00015091,3]
[394107141,1763289314817,379.72,0.00016461,3]
[394107142,1763289325276,569.62,0.00015091,3]
[394107150,1763289435049,3861.72479244,0.00014405,2]
[394107155,1763289629103,300.130564,0.00032877,120]
[394107156,1763289649436,185.85772321,0.0001435,2]
[394107157,1763289706151,168.029,0.00014401,2]
[394107158,1763289713751,-185.85772321,0.00014495,2]
[394107159,1763289713772,-60.00218024,0.00014568,2]
[394107160,1763289716219,185.85772321,0.0001435,2]
[394107162,1763289907514,-125.85554297,0.00014568,2]
[394107163,1763289907535,-42.16121878,0.00014594,2]
[394107164,1763289920288,3819.56357366,0.00014448,2]
[394107170,1763290016155,-155.8971479,0.00014523,2]
[394107171,1763290059202,-197.39548942,0.00014523,2]
[394107173,1763290075799,-846.70736268,0.00014523,2]
[394107174,1763290090961,-185.50067807,0.00014559,2]
[394107175,1763290093593,185.50067807,0.00014413,2]
[394107176,1763290106217,-3856.45464004,0.00014571,2]
[394107179,1763290116876,487.69093618,0.00014448,2]
[394107180,1763290121634,-487.69093618,0.00014594,2]
[394107181,1763290139102,2830.42516623,0.00014523,2]
[394107183,1763290140828,150.0,0.00032876,120]
[394107184,1763290143633,300.0,0.00014669,2]
[394107187,1763290201609,300.0,0.00014669,2]
[394107188,1763290202991,300.0,0.00014669,2]
[394107189,1763290203518,300.0,0.00014669,2]
[394107190,1763290205157,300.0,0.00014669,2]
[394107191,1763290208371,1200.0,0.00014669,2]
[394107200,1763290232853,-432.26977307,0.0001467,2]
[394107201,1763290232863,-44.25022693,0.0001467,2]
[394107202,1763290232891,-1155.74977307,0.0001467,2]
[394107203,1763290232900,-7911.2815094,0.00014671,2]
[394107204,1763290232956,500.0,0.00014669,2]
[394107205,1763290232991,500.0,0.00014669,2]
[394107206,1763290233032,500.0,0.00014669,2]
[394107207,1763290233064,500.0,0.00014669,2]
[394107208,1763290233096,500.0,0.00014669,2]
[394107209,1763290233133,500.0,0.00014669,2]
[394107210,1763290235081,500.0,0.00014669,2]
[394107211,1763290236859,500.0,0.00014669,2]
[394107212,1763290236888,469.58483377,0.00014669,2]
[394107213,1763290236911,30.41516623,0.00014669,2]
[394107214,1763290236959,500.0,0.00014669,2]
[394107215,1763290236991,500.0,0.00014669,2]
[394107217,1763290237026,500.0,0.00014669,2]
[394107218,1763290237064,500.0,0.00014669,2]
[394107219,1763290237097,500.0,0.00014669,2]
[394107220,1763290237224,500.0,0.00014669,2]
[394107221,1763290237257,470.0,0.00014669,2]
[394107222,1763290237295,500.0,0.00014669,2]
[394107224,1763290237325,500.0,0.00014669,2]
[394107226,1763290237365,500.0,0.00014669,2]
[394107230,1763290237398,500.0,0.00014669,2]
[394107232,1763290237440,500.0,0.00014669,2]
[394107233,1763290237490,500.0,0.00014669,2]
[394107235,1763290237533,500.0,0.00014669,2]
[394107239,1763290237560,500.0,0.00014669,2]
[394107242,1763290237598,500.0,0.00014669,2]
[394107243,1763290237632,500.0,0.00014669,2]
[394107249,1763290237676,500.0,0.00014669,2]
[394107254,1763290237714,500.0,0.00014669,2]
[394107261,1763290237765,499.59483377,0.00014669,2]
[394107264,1763290237788,0.40516623,0.00014669,2]
[394107265,1763290237838,500.0,0.00014669,2]
[394107266,1763290237885,406.72828944,0.00014669,2]
[394107267,1763290237922,500.0,0.00014669,2]
[394107295,1763290246292,-500.0,0.00014673,2]
[394107296,1763290246302,-500.0,0.00014673,2]
[394107297,1763290246310,-500.0,0.00014673,2]
[394107298,1763290246319,-491.85907738,0.00014673,2]
[394107299,1763290246329,-500.0,0.00014673,2]
[394107300,1763290246337,-500.0,0.00014673,2]
[394107301,1763290246346,-500.0,0.00014673,2]
[394107302,1763290246355,-500.0,0.00014673,2]
[394107303,1763290246363,-500.0,0.00014673,2]
[394107304,1763290246461,-500.0,0.00014673,2]
[394107305,1763290246470,-500.0,0.00014673,2]
[394107306,1763290246479,-500.0,0.00014673,2]
[394107307,1763290246488,-510.08784499,0.00014673,2]
[394107308,1763290246497,-500.0,0.00014673,2]
[394107309,1763290246506,-500.0,0.00014673,2]
[394107310,1763290246515,-500.0,0.00014673,2]
[394107311,1763290246524,-500.0,0.00014673,2]
[394107312,1763290246533,-500.0,0.00014673,2]
[394107313,1763290246541,-745.16,0.00014692,2]
[394107314,1763290246551,-745.16,0.00014693,2]
[394107315,1763290246559,-745.16,0.00014693,2]
[394107316,1763290246568,-745.16,0.00014693,2]
[394107317,1763290246577,-500.0,0.00014694,2]
[394107318,1763290246587,-745.16,0.00014694,2]
[394107319,1763290246595,-745.16,0.00014694,2]
[394107320,1763290246604,-745.16,0.00014694,2]
[394107321,1763290246612,-745.16,0.00014694,2]
[394107322,1763290246621,-745.16,0.00014694,2]
[394107323,1763290246631,-745.16,0.00014694,2]
[394107324,1763290246640,-745.16,0.00014694,2]
[394107325,1763290246649,-745.16,0.00014694,2]
[394107326,1763290246657,-745.16,0.00014694,2]
[394107327,1763290246666,-745.16,0.00014694,2]
[394107328,1763290246675,-745.16,0.00014694,2]
[394107329,1763290246683,-745.16,0.00014694,2]
[394107330,1763290246692,-745.16,0.00014694,2]
[394107331,1763290246701,-745.16,0.00014694,2]
[394107332,1763290246709,-745.16,0.00014694,2]
[394107333,1763290246719,-745.16,0.00014694,2]
[394107334,1763290246727,-745.16,0.00014694,2]
[394107335,1763290246736,-745.16,0.00014694,2]
[394107336,1763290246746,-745.16,0.00014694,2]
[394107337,1763290246755,-745.33188974,0.00014694,2]
[394107338,1763290246763,-35775.58072438,0.00014695,2]
[394107339,1763290246772,-665154.18109898,0.00014695,2]
[394107340,1763290247869,647.60334688,0.00014524,2]
[394107341,1763290249759,500.0,0.00014669,2]
[394107342,1763290249791,500.0,0.00014669,2]
[394107343,1763290249829,523.68813277,0.00014669,2]
[394107344,1763290249867,500.0,0.00014669,2]
[394107345,1763290249903,500.0,0.00014669,2]
[394107346,1763290249934,500.0,0.00014669,2]
[394107347,1763290249968,500.0,0.00014669,2]
[394107348,1763290250010,523.68813277,0.00014669,2]
[394107349,1763290250043,500.0,0.00014669,2]
[394107350,1763290250075,500.0,0.00014669,2]
[394107351,1763290250104,500.0,0.00014669,2]
[394107352,1763290250139,500.0,0.00014669,2]
[394107353,1763290250181,523.68813277,0.00014669,2]
[394107354,1763290250215,500.0,0.00014669,2]
[394107355,1763290250244,500.0,0.00014669,2]
[394107356,1763290250278,500.0,0.00014669,2]
[394107357,1763290250309,500.0,0.00014669,2]
[394107358,1763290250341,523.68813277,0.00014669,2]
[394107359,1763290250376,257.65412204,0.00014669,2]
[394107360,1763290250398,242.34587796,0.00014669,2]
[394107361,1763290250428,500.0,0.00014669,2]
[394107362,1763290250465,500.0,0.00014669,2]
[394107363,1763290250495,406.72828944,0.00014669,2]
[394107364,1763290250526,523.68813277,0.00014669,2]
[394107365,1763290250557,500.0,0.00014669,2]
[394107366,1763290250595,500.0,0.00014669,2]
[394107367,1763290250623,500.0,0.00014669,2]
[394107368,1763290250651,500.0,0.00014669,2]
[394107369,1763290250685,523.68813277,0.00014669,2]
[394107370,1763290250719,500.0,0.00014669,2]
[394107371,1763290250751,500.0,0.00014669,2]
[394107372,1763290250793,500.0,0.00014669,2]
[394107373,1763290250826,523.68813277,0.00014669,2]
[394107374,1763290250861,500.0,0.00014669,2]
[394107375,1763290250891,500.0,0.00014669,2]
[394107376,1763290251020,523.68813277,0.00014669,2]
[394107377,1763290251048,500.0,0.00014669,2]
[394107378,1763290251085,500.0,0.00014669,2]
[394107379,1763290251116,523.68813277,0.00014669,2]
[394107380,1763290251144,232.49516875,0.00014669,2]
[394107381,1763290251166,267.50483125,0.00014669,2]
[394107382,1763290251206,500.0,0.00014669,2]
[394107383,1763290251240,500.0,0.00014669,2]
[394107384,1763290251273,523.68813277,0.00014669,2]
[394107385,1763290251383,500.0,0.00014669,2]
[394107386,1763290251422,500.0,0.00014669,2]
[394107387,1763290251456,500.0,0.00014669,2]
[394107388,1763290251493,523.68813277,0.00014669,2]
[394107389,1763290251528,500.0,0.00014669,2]
[394107390,1763290251564,523.68813277,0.00014669,2]
[394107391,1763290251593,470.0,0.00014669,2]
[394107392,1763290251642,500.0,0.00014669,2]
[394107393,1763290251678,523.68813277,0.00014669,2]
[394107394,1763290251721,500.0,0.00014669,2]
[394107395,1763290251760,523.68813277,0.00014669,2]
[394107396,1763290251796,298.39080253,0.00014669,2]
[394107397,1763290251834,523.68813277,0.00014669,2]
[394107398,1763290251866,500.0,0.00014669,2]
[394107399,1763290251900,523.68813277,0.00014669,2]
[394107400,1763290251943,523.68813277,0.00014669,2]
[394107401,1763290251983,274.60930406,0.00014669,2]
[394107402,1763290253361,-249.07882871,0.00014669,2]
[394107403,1763290253394,-523.68813277,0.00014669,2]
[394107404,1763290253423,-500.0,0.00014669,2]
[394107405,1763290253456,-523.68813277,0.00014669,2]
[394107406,1763290253485,-500.0,0.00014669,2]
[394107407,1763290253516,-523.68813277,0.00014669,2]
[394107408,1763290253545,-500.0,0.00014669,2]
[394107409,1763290253577,-523.68813277,0.00014669,2]
[394107410,1763290253608,-500.0,0.00014669,2]
[394107411,1763290253642,-523.68813277,0.00014669,2]
[394107412,1763290256447,-500.0,0.00014669,2]
[394107413,1763290256481,-523.68813277,0.00014669,2]
[394107414,1763290256510,-500.0,0.00014669,2]
[394107415,1763290256540,-500.0,0.00014669,2]
[394107416,1763290256568,-500.0,0.00014669,2]
[394107417,1763290256603,-523.68813277,0.00014669,2]
[394107418,1763290256634,-500.0,0.00014669,2]
[394107419,1763290256670,-523.68813277,0.00014669,2]
[394107420,1763290256700,-500.0,0.00014669,2]
[394107421,1763290256730,-357.88120338,0.00014669,2]
[394107422,1763290256976,-142.11879662,0.00014669,2]
[394107423,1763290257009,-523.68813277,0.00014669,2]
[394107424,1763290257039,-500.0,0.00014669,2]
[394107425,1763290257072,-523.68813277,0.00014669,2]
[394107426,1763290257101,-500.0,0.00014669,2]
[394107427,1763290257133,-523.68813277,0.00014669,2]
[394107428,1763290257166,-523.68813277,0.00014669,2]
[394107429,1763290257193,-500.0,0.00014669,2]
[394107430,1763290257224,-523.68813277,0.00014669,2]
[394107431,1763290257254,-500.0,0.00014669,2]
[394107432,1763290282583,-167.94335641,0.00014233,2]
[394107433,1763290286638,-173.70155009,0.00014233,2]
[394107434,1763290288823,-192.75440576,0.00014233,2]
[394107435,1763290291539,-312.5951554,0.00014233,2]
[394107436,1763290295630,-342.75507721,0.00014233,2]
[394107437,1763290342504,-368.04522985,0.00014133,2]